[Event "10th Sharjah Cup Women 2020"]
[Site "Sharjah"]
[Date "2020.01.06"]
[Round "3.15"]
[White "Boshra, Alshaeby"]
[Black "Jalaluldeen, Kareen Kamal J."]
[Result "1-0"]
[ECO "C00"]
[WhiteElo "1979"]
[BlackElo "1784"]
[Annotator "NA"]
[PlyCount "87"]
[EventDate "2020.01.04"]
[EventType "swiss"]
[EventCountry "UAE"]
[SourceTitle "playchess.com"]
[Source "ChessBase"]
[SourceQuality "1"]
[TimeControl "5400+30"]

1. e4 {[%emt 0:00:00]} e6 {[%emt 0:00:00]} 2. d3 {[%emt 0:00:00]} d5 {[%emt 0:00:00]} 3. Nd2 {[%emt 0:00:00]} c5 {[%emt 0:01:03]} 4. Ngf3 {[%emt 0:00:12]} Nc6 {[%emt 0:00:13]} 5. g3 {[%emt 0:00:19]} g6 {[%emt 0:01:50]} 6. Bg2 {[%emt 0:00:14]} Bg7 {[%emt 0:00:10]} 7. O-O {[%emt 0:00:07]} Nge7 {[%emt 0:01:37]} 8. Re1 {[%emt 0:00:14]} O-O {[%emt 0:00:44]} 9. c3 {[%emt 0:03:26]} b5 {[%emt 0:03:39]} (9... a5 $11) 10. e5 {[%emt 0:04:19]} Qc7 {[%emt 0:03:45] A08: King's Indian Attack} (10... b4 11. Nb3 c4 12. dxc4 dxc4 13. Nbd4 Rb8 14. Bg5 Qc7 15. Nxc6 Nxc6 16. Bf6 bxc3 17. bxc3 Bb7 18. Ng5 {½-½ (32) Aronian,L (2797)-Nakamura,H (2767) Saint Louis 2014}) 11. Qe2 {[%emt 0:01:49]} a5 {[%emt 0:03:44]} 12. Nf1 {[%emt 0:00:05]} Ba6 {[%emt 0:01:41]} 13. Bf4 {[%emt 0:00:54]} b4 {[%emt 0:04:21]} 14. c4 {[%emt 0:00:26]} Rad8 $146 {[%emt 0:00:52]} ({Predecessor:} 14... dxc4 15. dxc4 Rfd8 16. N1d2 Nf5 17. Rac1 Bb7 {½-½ (61) Beshukov,S (2500)-Nizhegorodova,M (2085) Berlin 1995}) 15. h4 {[%emt 0:36:41]} dxc4 {[%emt 0:04:57]} 16. dxc4 {[%emt 0:00:06]} Nf5 {[%emt 0:00:28]} 17. N1d2 {[%emt 0:13:45]} Ncd4 {[%emt 0:03:31]} 18. Nxd4 {[%emt 0:00:30]} Nxd4 {[%emt 0:00:12]} 19. Qe4 {[%emt 0:01:49]} Rd7 {[%emt 0:05:39]} 20. Rac1 {[%emt 0:00:45]} Bb7 {[%emt 0:02:51]} 21. Qxb7 {[%emt 0:05:07]} Qxb7 {[%emt 0:00:05]} 22. Bxb7 {[%emt 0:00:05]} Rxb7 {[%emt 0:00:06]} 23. Kg2 {[%emt 0:08:19]} a4 {[%emt 0:07:14]} 24. Ne4 {[%emt 0:03:36]} Rc7 {[%emt 0:02:24]} 25. Rcd1 {[%emt 0:02:20]} Rd8 $16 {[%emt 0:09:25]} 26. h5 {[%emt 0:06:48]} h6 {[%emt 0:22:05]} 27. g4 {[%emt 0:09:03]} g5 {[%emt 0:05:19]} 28. Bg3 {[%emt 0:00:06]} Bf8 {[%emt 0:02:44]} 29. f4 {[%emt 0:00:22]} Be7 {[%emt 0:01:25]} 30. Rd2 {[%emt 0:01:07]} Kg7 {[%emt 0:01:46]} 31. Red1 {[%emt 0:01:14]} Rcc8 {[%emt 0:04:43]} 32. fxg5 {[%emt 0:01:00]} hxg5 {[%emt 0:02:22]} 33. Bf2 {[%emt 0:00:44]} Nc6 {[%emt 0:01:27]} 34. Rxd8 {[%emt 0:00:30]} Rxd8 {[%emt 0:00:06]} 35. Rxd8 {[%emt 0:00:20]} Bxd8 {[%emt 0:00:01]} 36. Bxc5 {[%emt 0:00:19]} Nxe5 {[%emt 0:00:22]} 37. Bd4 {[%emt 0:00:17]} f6 {[%emt 0:04:23]} 38. Nxg5 {[%emt 0:00:51]} fxg5 {[%emt 0:00:54]} 39. Bxe5+ {[%emt 0:00:05]} Kf7 {[%emt 0:00:44]} 40. b3 {[%emt 0:00:26]} axb3 {[%emt 0:00:36]} 41. axb3 {[%emt 0:00:01]} Be7 {[%emt 0:00:08]} 42. Kf3 {[%emt 0:00:09]} Bc5 {[%emt 0:00:21]} 43. Ke4 {[%emt 0:00:18]} Be7 {[%emt 0:00:57]} 44. Bd4 {[%emt 0:00:18]} 1-0

[Event "10th Sharjah Cup Women 2020"]
[Site "Sharjah"]
[Date "2020.01.06"]
[Round "3.16"]
[White "Kyrkjebo, Hanna B."]
[Black "Khalil, Reem"]
[Result "1-0"]
[ECO "C41"]
[WhiteElo "1963"]
[BlackElo "1295"]
[Annotator "NA"]
[PlyCount "68"]
[EventDate "2020.01.04"]
[EventType "swiss"]
[EventCountry "UAE"]
[SourceTitle "playchess.com"]
[Source "ChessBase"]
[SourceQuality "1"]
[TimeControl "5400+30"]

1. e4 {[%emt 0:00:00]} d6 {[%emt 0:00:00]} 2. d4 {[%emt 0:00:00]} Nf6 {[%emt 0:00:00]} 3. Nc3 {[%emt 0:00:00]} e5 {[%emt 0:00:08]} 4. Nf3 {[%emt 0:00:11]} Nbd7 {[%emt 0:00:13]} 5. Bc4 {[%emt 0:00:57]} Be7 {[%emt 0:00:14]} 6. O-O {[%emt 0:00:35]} O-O {[%emt 0:00:19]} 7. Re1 {[%emt 0:01:56]} c6 {[%emt 0:00:21]} 8. a4 {[%emt 0:00:57]} a5 {[%emt 0:00:55]} 9. h3 {[%emt 0:02:23]} h6 {[%emt 0:00:07]} 10. Bb3 {[%emt 0:08:54]} Nh7 {[%emt 0:00:40]} 11. Be3 {[%emt 0:04:47]} Ng5 {[%emt 0:09:33]} 12. Qe2 {[%emt 0:06:10]} Nxf3+ {[%emt 0:01:49]} 13. Qxf3 {[%emt 0:00:20]} ({Of course not} 13. gxf3 exd4 14. Bxd4 Bf6 $15) 13... Bg5 {[%emt 0:05:51]} 14. Rad1 {[%emt 0:03:48]} Qe7 {[%emt 0:10:05]} 15. Qg3 {[%emt 0:17:12]} Bh4 {[%emt 0:03:03]} 16. Qh2 {[%emt 0:10:14]} exd4 {[%emt 0:25:48]} 17. Rxd4 {[%emt 0:06:18]} Ne5 {[%emt 0:03:37]} 18. Red1 $16 {[%emt 0:03:18]} Kh8 {[%emt 0:19:43]} 19. Rxd6 {[%emt 0:04:29]} f5 {[%emt 0:06:19]} 20. f4 {[%emt 0:07:35]} Nd7 {[%emt 0:02:04]} 21. g3 {[%emt 0:06:23]} Rf6 {[%emt 0:00:31]} 22. Rxf6 {[%emt 0:04:04]} Bxf6 {[%emt 0:01:15]} 23. e5 {[%emt 0:00:32]} Nxe5 {[%emt 0:00:31]} 24. fxe5 {[%emt 0:00:23]} Bxe5 {[%emt 0:00:55]} 25. Qf2 {[%emt 0:01:12]} Be6 {[%emt 0:02:55]} 26. Bxe6 {[%emt 0:03:57]} Qxe6 {[%emt 0:00:02]} 27. Bf4 {[%emt 0:01:00]} Bf6 {[%emt 0:00:35]} 28. Qe3 {[%emt 0:01:13]} Qc4 {[%emt 0:00:27]} 29. Qd3 {[%emt 0:02:36]} Qc5+ {[%emt 0:02:29]} 30. Qe3 {[%emt 0:00:59]} Qf8 {[%emt 0:00:56]} 31. Bd6 {[%emt 0:01:36]} Qf7 {[%emt 0:00:21]} 32. Re1 {[%emt 0:00:30]} Rd8 {[%emt 0:01:04]} 33. Bc5 {[%emt 0:00:56]} Qc7 {[%emt 0:02:20]} 34. Bb6 {[%emt 0:00:55]} Bd4 1-0

[Event "10th Sharjah Cup Women 2020"]
[Site "Sharjah"]
[Date "2020.01.06"]
[Round "3.17"]
[White "Al Ghafri, Alanoud"]
[Black "Shanya Mishra"]
[Result "0-1"]
[ECO "D80"]
[WhiteElo "1257"]
[BlackElo "1907"]
[Annotator "NA"]
[PlyCount "26"]
[EventDate "2020.01.04"]
[EventType "swiss"]
[EventCountry "UAE"]
[SourceTitle "playchess.com"]
[Source "ChessBase"]
[SourceQuality "1"]
[TimeControl "5400+30"]

1. d4 Nf6 2. c4 g6 3. Nc3 d5 4. Bg5 Ne4 5. Nxe4 dxe4 6. e3 c5 7. d5 Bg7 8. Rb1 Qa5+ 9. b4 $2 (9. Qd2 Qxa2 10. Rc1) 9... Bc3+ 10. Qd2 Bxd2+ 11. Kxd2 Qxa2+ 12. Kc1 Qxf2 13. Nh3 Bxh3 $19 0-1

[Event "10th Sharjah Cup Women 2020"]
[Site "Sharjah"]
[Date "2020.01.06"]
[Round "3.18"]
[White "Kyrkjebo, Marte B."]
[Black "Kaushika Sridharan"]
[Result "1-0"]
[ECO "B12"]
[WhiteElo "1880"]
[BlackElo "1205"]
[Annotator "NA"]
[PlyCount "71"]
[EventDate "2020.01.04"]
[EventType "swiss"]
[EventCountry "UAE"]
[SourceTitle "playchess.com"]
[Source "ChessBase"]
[SourceQuality "1"]
[TimeControl "5400+30"]

1. e4 {[%emt 0:00:00]} c6 {[%emt 0:02:09]} 2. d4 {[%emt 0:00:00]} d5 {[%emt 0:00:52]} 3. e5 {[%emt 0:00:55]} Bf5 {[%emt 0:01:33]} 4. Nf3 {[%emt 0:00:21]} e6 {[%emt 0:01:14]} 5. Be2 {[%emt 0:00:19]} Ne7 {[%emt 0:01:17]} 6. O-O {[%emt 0:01:11]} c5 {[%emt 0:02:48]} 7. Be3 {[%emt 0:07:55] B12: Caro-Kann: Advance Variation} (7. c4 Nbc6 8. dxc5 dxc4 9. Bxc4 Ng6 10. Be3 Be7 11. Nc3 O-O 12. Be2 Qb8 13. Nd2 Rd8 14. f4 Nb4 15. Rc1 b6 {1-0 (42) Harikrishna,P (2729)-Mamedyarov,S (2817) Kolkata 2018}) 7... c4 {[%emt 0:04:25]} 8. b3 {[%emt 0:10:29]} b5 $146 {[%emt 0:07:53]} ({Predecessor:} 8... Qc7 9. Na3 Qa5 10. Nb1 c3 11. Qe1 Nec6 12. Nxc3 Bb4 13. Bd2 Bg4 14. Nb5 Bxd2 {1-0 (41) Villegas,F (2231)-Carcamo,M (2052) Buenos Aires 2019}) 9. a4 {[%emt 0:08:15]} Qa5 $2 {[%emt 0:13:37]} (9... cxb3 $16 10. cxb3 (10. Bxb5+ Nbc6 $16) 10... b4) 10. Bd2 {[%emt 0:08:32]} Qa6 {[%emt 0:05:30]} (10... b4 $142) 11. Na3 {[%emt 0:01:45]} bxa4 {[%emt 0:08:51]} 12. bxc4 {[%emt 0:00:55]} Qc8 {[%emt 0:04:17]} 13. Nb5 {[%emt 0:04:09]} Ng6 {[%emt 0:09:24]} 14. Ba5 {[%emt 0:06:45]} Na6 {[%emt 0:04:02]} 15. c5 {[%emt 0:01:42]} Be7 {[%emt 0:03:56]} 16. Nd6+ {[%emt 0:01:02]} Bxd6 {[%emt 0:00:45]} 17. Bb5+ {[%emt 0:00:28]} Kf8 {[%emt 0:02:09]} 18. exd6 {[%emt 0:01:26]} Nb8 {[%emt 0:02:10]} 19. Rxa4 {[%emt 0:08:31]} Nc6 {[%emt 0:01:44]} 20. Bc7 $18 {[%emt 0:03:03]} Nb8 {[%emt 0:03:05]} 21. Qa1 {[%emt 0:05:45]} a6 {[%emt 0:01:38]} 22. Bxb8 {[%emt 0:06:02]} Rxb8 {[%emt 0:00:37]} 23. Bxa6 {[%emt 0:00:35]} Qd7 {[%emt 0:01:38]} 24. Bd3 {[%emt 0:01:43]} Bxd3 {[%emt 0:01:45]} 25. cxd3 {[%emt 0:00:04]} Nf4 {[%emt 0:00:18]} 26. Ra7 {[%emt 0:03:49]} Qd8 {[%emt 0:01:48]} 27. Qa3 {[%emt 0:02:53]} h5 {[%emt 0:05:18]} 28. c6 {[%emt 0:01:07]} Rc8 {[%emt 0:04:31]} 29. d7+ {[%emt 0:00:40]} Kg8 {[%emt 0:00:20]} 30. dxc8=Q {[%emt 0:00:20]} Qxc8 {[%emt 0:00:23]} 31. Ra8 {[%emt 0:00:15]} Qxa8 {[%emt 0:00:18]} 32. Qxa8+ {[%emt 0:00:06]} Kh7 {[%emt 0:00:07]} 33. Ng5+ {[%emt 0:00:31]} Kg6 {[%emt 0:00:17]} 34. Qxh8 {[%emt 0:00:16]} Kxg5 {[%emt 0:00:12]} 35. Qxg7+ {[%emt 0:00:43]} Kh4 {[%emt 0:00:25]} 36. Qg3# {[%emt 0:00:16]} 1-0

[Event "10th Sharjah Cup Women 2020"]
[Site "Sharjah"]
[Date "2020.01.06"]
[Round "3.19"]
[White "Aisha Mohamed Al Muaini"]
[Black "Al Maamari, Wafia Darwish"]
[Result "0-1"]
[ECO "B30"]
[WhiteElo "1195"]
[BlackElo "1866"]
[Annotator "NA RC"]
[PlyCount "92"]
[EventDate "2020.01.04"]
[EventType "swiss"]
[EventCountry "UAE"]
[SourceTitle "playchess.com"]
[Source "ChessBase"]
[SourceQuality "1"]
[TimeControl "5400+30"]

1. e4 {[%emt 0:00:00]} c5 {[%emt 0:00:00]} 2. Nf3 {[%emt 0:00:00]} Nc6 {[%emt 0:00:00]} 3. d3 {[%emt 0:00:00]} g6 {[%emt 0:00:00]} 4. g3 {[%emt 0:00:00]} Bg7 {[%emt 0:00:01]} 5. Bg2 {[%emt 0:00:00]} e5 {[%emt 0:00:14]} 6. c3 {[%emt 0:00:04]} d6 {[%emt 0:01:39]} 7. Nbd2 {[%emt 0:00:06]} Nge7 {[%emt 0:00:30]} 8. O-O {[%emt 0:00:13]} O-O {[%emt 0:02:11]} 9. a4 {[%emt 0:00:06]} h6 {[%emt 0:01:43]} 10. h3 {[%emt 0:00:20] A04: Unusual lines after 1 Nf3 and King's Indian Attack} (10. Nh4 f5 11. exf5 gxf5 12. Qh5 Be6 13. Ng6 Nxg6 14. Qxg6 Qd7 15. Qh5 d5 16. Nf3 Bf7 17. Qh3 e4 18. dxe4 dxe4 {0-1 (52) Starosek,K (2488)-Timofeev,A (2575) chessassistantclub.com INT 2004}) 10... Be6 {[%emt 0:00:52]} 11. Kh2 {[%emt 0:01:00]} d5 $146 {[%emt 0:02:59]} ({Predecessor:} 11... f5 12. exf5 gxf5 13. Ne1 f4 14. g4 Ng6 15. Be4 Nh8 16. c4 {0-1 (32) Mandic,V (2121)-Katanic Vujic,P (2314) Belgrade 2011}) 12. Qe2 {[%emt 0:00:47]} f5 {[%emt 0:06:14]} 13. Ne1 {[%emt 0:01:58]} Qc7 {[%emt 0:06:57]} 14. f4 {[%emt 0:04:14]} fxe4 {[%emt 0:01:31]} 15. fxe5 {[%emt 0:01:08]} Bxe5 {[%emt 0:01:18]} 16. dxe4 {[%emt 0:00:23]} Bxg3+ {[%emt 0:00:30]} 17. Kh1 {[%emt 0:00:09]} Rxf1+ $2 {[%emt 0:04:20]} (17... Qd6 $19 18. b3 Be5 19. Rxf8+ Rxf8) 18. Nxf1 {[%emt 0:00:24]} Bxe1 {[%emt 0:06:46]} 19. Qxe1 {[%emt 0:00:17]} g5 {[%emt 0:00:48]} 20. exd5 {[%emt 0:00:37]} (20. h4 $1 $15) 20... Bxd5 {[%emt 0:00:07]} 21. Bxd5+ {[%emt 0:00:13]} Nxd5 {[%emt 0:00:06]} 22. Qe6+ {[%emt 0:00:06]} Qf7 {[%emt 0:00:04]} 23. Qxf7+ {[%emt 0:00:12]} Kxf7 {[%emt 0:00:05]} 24. Bd2 {[%emt 0:00:13]} Re8 {[%emt 0:00:34]} 25. Re1 {[%emt 0:00:09]} Ne5 {[%emt 0:00:49]} 26. Kg2 {[%emt 0:00:42]} c4 {[%emt 0:01:34]} 27. Ne3 {[%emt 0:00:41] [#]} Nf4+ $1 {[%emt 0:00:10]} 28. Kg3 {[%emt 0:00:24]} Rd8 {[%emt 0:01:33]} 29. Nf1 {[%emt 0:01:02]} Ned3 {[%emt 0:00:45]} 30. Re4 $19 {[%emt 0:00:39]} Nh5+ {[%emt 0:00:35]} 31. Kh2 {[%emt 0:00:17]} Nxb2 {[%emt 0:01:19]} 32. Bc1 {[%emt 0:00:17]} Nf6 {[%emt 0:01:33]} 33. Re2 {[%emt 0:00:43]} Nxa4 {[%emt 0:00:21]} 34. Rd2 {[%emt 0:00:20]} Rxd2+ {[%emt 0:00:12]} 35. Bxd2 {[%emt 0:00:04]} Ne4 {[%emt 0:00:07]} 36. Be1 {[%emt 0:00:16]} Naxc3 {[%emt 0:00:07]} 37. Bxc3 {[%emt 0:00:11]} Nxc3 {[%emt 0:00:05]} 38. Nd2 {[%emt 0:00:05]} b5 {[%emt 0:00:05]} 39. Kg2 {[%emt 0:00:11]} Ke6 {[%emt 0:00:07]} 40. Kf3 {[%emt 0:00:09]} a5 {[%emt 0:00:30]} 41. Ke3 {[%emt 0:00:12]} Nd5+ {[%emt 0:00:15]} 42. Kd4 {[%emt 0:00:11]} c3 {[%emt 0:00:29]} 43. Nb3 {[%emt 0:00:49]} c2 {[%emt 0:00:06]} 44. Nxa5 {[%emt 0:00:17]} c1=Q {[%emt 0:00:10]} 45. Nc6 {[%emt 0:00:12]} Qc3+ {[%emt 0:00:04]} 46. Ke4 {[%emt 0:00:03]} Qe3# {[%emt 0:00:08]} 0-1

[Event "10th Sharjah Cup Women 2020"]
[Site "Sharjah"]
[Date "2020.01.06"]
[Round "3.20"]
[White "Greibrokk, Ingrid"]
[Black "Tower, Nora"]
[Result "1-0"]
[ECO "B06"]
[WhiteElo "1855"]
[BlackElo "1203"]
[Annotator "NA"]
[PlyCount "65"]
[EventDate "2020.01.04"]
[EventType "swiss"]
[EventCountry "UAE"]
[SourceTitle "playchess.com"]
[Source "ChessBase"]
[SourceQuality "1"]
[TimeControl "5400+30"]

1. e4 {[%emt 0:00:00]} g6 {[%emt 0:00:00]} 2. d4 {[%emt 0:00:00]} Bg7 {[%emt 0:00:07]} 3. g3 {[%emt 0:00:28]} d6 {[%emt 0:00:13]} 4. Bg2 {[%emt 0:00:08]} Nf6 {[%emt 0:01:36]} 5. Ne2 {[%emt 0:07:26]} O-O {[%emt 0:00:29]} 6. O-O {[%emt 0:00:06]} Nbd7 {[%emt 0:02:28]} 7. f4 {[%emt 0:14:02] B06: Modern Defence} (7. h3 e5 8. Nbc3 c6 9. a4 b6 10. Be3 Bb7 11. g4 a6 12. Ng3 b5 13. g5 Ne8 14. d5 cxd5 15. Nxd5 Nc7 16. axb5 axb5 17. Rxa8 Bxa8 18. Qe2 Nxd5 19. exd5 Qb8 {1-0 (43) Grischuk,A (2761)-Caruana,F (2770) Moscow 2012}) 7... e5 {[%emt 0:02:29]} 8. c3 {[%emt 0:05:19]} Re8 {[%emt 0:01:10]} 9. Qc2 {[%emt 0:16:43]} b6 $146 {[%emt 0:00:33]} ({Predecessor:} 9... Qe7 10. Nd2 b6 11. fxe5 dxe5 12. Nb3 a5 {0-1 (39) Genba,V (2430)-Balashov,Y (2505) Kstovo 1994}) 10. fxe5 {[%emt 0:17:31]} dxe5 {[%emt 0:00:15]} 11. d5 {[%emt 0:00:06]} Bb7 {[%emt 0:00:23]} 12. c4 {[%emt 0:00:12]} Rc8 {[%emt 0:01:05]} 13. Nbc3 {[%emt 0:02:26]} c6 {[%emt 0:08:24]} 14. b4 {[%emt 0:01:14]} cxd5 {[%emt 0:01:14]} 15. cxd5 {[%emt 0:02:50]} a6 {[%emt 0:04:23]} 16. h3 {[%emt 0:11:19]} Qe7 {[%emt 0:14:29]} 17. Qb3 {[%emt 0:01:25]} b5 {[%emt 0:02:58]} 18. Be3 {[%emt 0:02:31]} Rc4 {[%emt 0:01:41]} 19. a3 {[%emt 0:00:11]} Rec8 {[%emt 0:04:44]} 20. Rac1 {[%emt 0:01:20]} Qd6 $11 {[%emt 0:03:28]} 21. Kh2 {[%emt 0:02:40]} R8c7 {[%emt 0:09:03]} 22. Rb1 {[%emt 0:06:35]} Kh8 {[%emt 0:03:16]} 23. Rfd1 {[%emt 0:05:12]} Ng8 {[%emt 0:09:46]} 24. a4 {[%emt 0:00:29]} bxa4 {[%emt 0:02:32]} 25. Nxa4 {[%emt 0:00:07]} Ne7 {[%emt 0:03:17]} 26. Nc5 {[%emt 0:00:35]} Nxc5 {[%emt 0:07:22]} 27. bxc5 {[%emt 0:00:24]} R4xc5 {[%emt 0:00:49]} 28. Bxc5 {[%emt 0:00:07]} Qxc5 {[%emt 0:00:33]} 29. d6 {[%emt 0:00:17]} Rd7 {[%emt 0:01:24]} 30. dxe7 {[%emt 0:00:49]} Rxe7 {[%emt 0:00:07]} 31. Rd8+ {[%emt 0:00:11]} Re8 {[%emt 0:00:52]} 32. Rxe8+ {[%emt 0:00:06]} Bf8 {[%emt 0:00:08]} 33. Qxf7 {[%emt 0:00:17]} 1-0

[Event "10th Sharjah Cup Women 2020"]
[Site "Sharjah"]
[Date "2020.01.06"]
[Round "3.21"]
[White "Nour Saleh Jasim"]
[Black "Razan, Alshaeby"]
[Result "0-1"]
[ECO "B01"]
[WhiteElo "1182"]
[BlackElo "1735"]
[Annotator "NA"]
[PlyCount "100"]
[EventDate "2020.01.04"]
[EventType "swiss"]
[EventCountry "UAE"]
[SourceTitle "playchess.com"]
[Source "ChessBase"]
[SourceQuality "1"]
[TimeControl "5400+30"]

1. e4 {[%emt 0:00:00]} d5 {[%emt 0:00:00]} 2. exd5 {[%emt 0:00:00]} Nf6 {[%emt 0:00:00]} 3. Nc3 {[%emt 0:01:07]} Nxd5 {[%emt 0:00:00]} 4. g3 {[%emt 0:00:21]} e5 {[%emt 0:01:36]} 5. Bg2 {[%emt 0:00:18]} c6 {[%emt 0:00:53]} 6. Nge2 {[%emt 0:05:27]} Be7 {[%emt 0:03:27]} 7. O-O {[%emt 0:04:58]} O-O {[%emt 0:00:15]} 8. d3 {[%emt 0:00:13]} Be6 {[%emt 0:03:22]} 9. f4 {[%emt 0:02:08]} Qb6+ {[%emt 0:01:48]} 10. Kh1 {[%emt 0:00:59]} Ne3 {[%emt 0:00:25]} 11. Bxe3 {[%emt 0:00:32]} Qxe3 {[%emt 0:00:04]} 12. Qc1 {[%emt 0:01:12]} exf4 {[%emt 0:06:53]} 13. Nxf4 {[%emt 0:00:49]} Qxc1 {[%emt 0:08:10]} 14. Raxc1 {[%emt 0:00:10]} Bc8 {[%emt 0:05:59]} 15. a3 {[%emt 0:00:21]} Nd7 {[%emt 0:01:50]} 16. b4 {[%emt 0:04:13]} a5 {[%emt 0:10:44]} 17. Nb1 {[%emt 0:04:55]} axb4 {[%emt 0:00:22]} 18. axb4 {[%emt 0:00:02]} Bxb4 {[%emt 0:00:20]} 19. c3 {[%emt 0:00:39]} Ba5 {[%emt 0:02:24]} 20. Na3 {[%emt 0:02:27]} Nc5 {[%emt 0:03:40]} 21. Nc4 {[%emt 0:00:31]} Bc7 {[%emt 0:00:23]} 22. d4 {[%emt 0:01:55]} Ne6 {[%emt 0:04:32]} 23. Nd3 {[%emt 0:03:35]} f6 {[%emt 0:07:52]} 24. Rfe1 {[%emt 0:06:26]} Bd7 {[%emt 0:07:33]} 25. d5 {[%emt 0:00:50]} Ng5 {[%emt 0:06:19]} 26. Nc5 {[%emt 0:02:22]} Bh3 {[%emt 0:01:16]} 27. Bxh3 {[%emt 0:01:28]} Nxh3 {[%emt 0:01:32]} 28. dxc6 {[%emt 0:02:25]} bxc6 {[%emt 0:02:43]} 29. Re6 {[%emt 0:00:31]} Ra2 {[%emt 0:02:58]} 30. Rxc6 {[%emt 0:02:04]} Ng5 {[%emt 0:00:22]} 31. Nd3 {[%emt 0:14:15]} Nf3 {[%emt 0:05:31]} 32. Ndb2 {[%emt 0:01:26]} Bb8 {[%emt 0:06:09]} 33. Kg2 {[%emt 0:03:43]} Ne5 {[%emt 0:00:12]} 34. Rc5 {[%emt 0:02:19]} Nxc4 {[%emt 0:00:10]} 35. Rxc4 {[%emt 0:00:42]} Rxb2+ {[%emt 0:00:04]} 36. Kg1 {[%emt 0:00:16]} Ba7+ {[%emt 0:00:12]} 37. Kh1 {[%emt 0:00:18]} Rd8 {[%emt 0:01:56]} 38. Re1 {[%emt 0:01:03]} Be3 {[%emt 0:01:16]} 39. Re4 {[%emt 0:00:37]} Bd2 {[%emt 0:02:19]} 40. R1e2 {[%emt 0:00:22]} Bxc3 {[%emt 0:00:19]} 41. Kg2 {[%emt 0:00:41]} Rxe2+ {[%emt 0:00:09]} 42. Rxe2 {[%emt 0:00:10]} Rd2 {[%emt 0:00:05]} 43. Rxd2 {[%emt 0:00:21]} Bxd2 {[%emt 0:00:07]} 44. Kf3 {[%emt 0:00:03]} Kf7 {[%emt 0:00:04]} 45. Ke4 {[%emt 0:00:25]} Ke6 {[%emt 0:00:02]} 46. g4 {[%emt 0:00:09]} f5+ {[%emt 0:01:08]} 47. gxf5+ {[%emt 0:00:18]} Kf6 {[%emt 0:00:04]} 48. h3 {[%emt 0:00:48]} h5 {[%emt 0:00:11]} 49. h4 {[%emt 0:01:12]} Be1 {[%emt 0:00:07]} 50. Kf4 {[%emt 0:00:08]} Bxh4 {[%emt 0:00:05]} 0-1

[Event "10th Sharjah Cup Women 2020"]
[Site "Sharjah"]
[Date "2020.01.06"]
[Round "3.22"]
[White "Mariam Mohammed, Almaeeni"]
[Black "Al Kalbani, Wadima"]
[Result "1/2-1/2"]
[ECO "A03"]
[WhiteElo "1136"]
[BlackElo "1667"]
[Annotator "NA RC"]
[PlyCount "61"]
[EventDate "2020.01.04"]
[EventType "swiss"]
[EventCountry "UAE"]
[SourceTitle "playchess.com"]
[Source "ChessBase"]
[SourceQuality "1"]
[TimeControl "5400+30"]

1. f4 {[%emt 0:00:03]} d5 {[%emt 0:00:05]} 2. Nf3 {[%emt 0:00:11]} Nf6 {[%emt 0:03:39]} 3. e3 {[%emt 0:00:48]} e6 {[%emt 0:01:53]} 4. d4 {[%emt 0:02:42]} c5 {[%emt 0:00:40]} 5. c3 {[%emt 0:00:32]} a6 {[%emt 0:01:19]} 6. Bd3 {[%emt 0:00:37]} Nc6 {[%emt 0:00:31]} 7. Nbd2 {[%emt 0:00:40]} Bd7 {[%emt 0:03:28]} 8. O-O {[%emt 0:00:36]} Bd6 {[%emt 0:00:22]} 9. Ne5 {[%emt 0:00:48]} h5 {[%emt 0:13:36]} 10. Qf3 {[%emt 0:00:57]} Qe7 {[%emt 0:00:18]} 11. a3 {[%emt 0:04:06]} a5 {[%emt 0:07:22]} 12. Rb1 {[%emt 0:05:49]} a4 {[%emt 0:02:28]} 13. b4 {[%emt 0:00:57]} c4 {[%emt 0:05:26]} 14. Bc2 {[%emt 0:00:24]} b5 {[%emt 0:00:17]} 15. e4 {[%emt 0:02:16]} O-O-O {[%emt 0:07:51]} 16. Nxc6 {[%emt 0:00:48]} Bxc6 {[%emt 0:00:23]} 17. e5 {[%emt 0:00:06]} Ng4 {[%emt 0:01:56]} 18. exd6 Qxd6 {[%emt 0:00:34]} 19. h3 {[%emt 0:01:13]} Nf6 {[%emt 0:00:15]} 20. Qe3 {[%emt 0:00:34]} g6 {[%emt 0:02:31]} 21. Qe5 {[%emt 0:01:38]} Qe7 {[%emt 0:00:09]} 22. Nf3 {[%emt 0:00:32]} h4 {[%emt 0:01:29]} 23. Ng5 {[%emt 0:01:01]} Nh5 24. Nf3 {[%emt 0:04:12]} Rdg8 {[%emt 0:04:40]} 25. Qg5 {[%emt 0:01:56]} f6 {[%emt 0:00:43]} 26. Qxh4 {[%emt 0:03:39]} Ng7 {[%emt 0:00:21]} 27. Qg4 {[%emt 0:01:07]} Nf5 {[%emt 0:01:26]} 28. Re1 {[%emt 0:02:42]} Qf7 {[%emt 0:01:23]} 29. Bd2 {[%emt 0:01:16]} Bd7 {[%emt 0:00:16]} 30. Nh2 {[%emt 0:05:53]} e5 {[%emt 0:05:51]} 31. fxe5 {[%emt 0:03:23]} 1/2-1/2